[Event "Titled Tuesday Blitz December 20 Early 2022"]
[White "SaiHanThiha"]
[Black "Arig, Busra"]
[BlackFideId "6309356"]
[WhiteElo "2429"]
[BlackElo "1850"]
[Result "0-1"]
[Round "06"]
[TimeControl "180+2"]
[Date "2022.12.20"]
[WhiteClock "0:00:02"]
[BlackClock "0:00:22"]

1. d4 {[%clk 0:03:00]}  c5 {[%clk 0:02:54]} 2. d5 {[%clk 0:03:01]}  d6 {[%clk 0:02:54]} 3. e4 {[%clk 0:03:01]}  Nf6 {[%clk 0:02:55]} 4. Nc3 {[%clk 0:03:00]}  g6 {[%clk 0:02:55]} 5. Nf3 {[%clk 0:02:58]}  Bg7 {[%clk 0:02:55]} 6. Nd2 {[%clk 0:02:58]}  O-O {[%clk 0:02:52]} 7. Be2 {[%clk 0:02:58]}  e6 {[%clk 0:02:52]} 8. O-O {[%clk 0:02:55]}  exd5 {[%clk 0:02:51]} 9. exd5 {[%clk 0:02:56]}  a6 {[%clk 0:02:51]} 10. a4 {[%clk 0:02:56]}  Bf5 {[%clk 0:02:49]} 11. Bf3 {[%clk 0:02:41]}  h5 {[%clk 0:02:47]} 12. Nc4 {[%clk 0:02:37]}  Ng4 {[%clk 0:02:38]} 13. Bf4 {[%clk 0:02:26]}  Ne5 {[%clk 0:02:37]} 14. Bxe5 {[%clk 0:02:03]}  dxe5 {[%clk 0:02:35]} 15. Re1 {[%clk 0:02:02]}  Re8 {[%clk 0:02:28]} 16. a5 {[%clk 0:01:57]}  Nd7 {[%clk 0:02:24]} 17. Nd6 {[%clk 0:01:56]}  Qc7 {[%clk 0:02:17]} 18. Nxe8 {[%clk 0:01:55]}  Rxe8 {[%clk 0:02:18]} 19. d6 {[%clk 0:01:53]}  Qb8 {[%clk 0:02:18]} 20. Be4 {[%clk 0:01:23]}  Be6 {[%clk 0:02:07]} 21. Nd5 {[%clk 0:01:23]}  Nf8 {[%clk 0:01:49]} 22. Ra3 {[%clk 0:00:46]}  Rd8 {[%clk 0:01:47]} 23. Nc7 {[%clk 0:00:47]}  Rd7 {[%clk 0:01:31]} 24. Rd3 {[%clk 0:00:27]}  Bg4 {[%clk 0:01:22]} 25. f3 {[%clk 0:00:27]}  Be6 {[%clk 0:01:22]} 26. Bd5 {[%clk 0:00:19]}  Bf5 {[%clk 0:01:03]} 27. Rb3 {[%clk 0:00:16]}  b5 {[%clk 0:00:58]} 28. axb6 {[%clk 0:00:16]}  Kh7 {[%clk 0:00:58]} 29. Nxa6 {[%clk 0:00:15]}  Qxd6 {[%clk 0:00:52]} 30. c4 {[%clk 0:00:15]}  Rd8 {[%clk 0:00:51]} 31. b7 {[%clk 0:00:10]}  Qxa6 {[%clk 0:00:50]} 32. b8=Q {[%clk 0:00:11]}  Rxb8 {[%clk 0:00:50]} 33. Rxb8 {[%clk 0:00:12]}  Ne6 {[%clk 0:00:51]} 34. Bxe6 {[%clk 0:00:11]}  Bxe6 {[%clk 0:00:50]} 35. Qd8 {[%clk 0:00:11]}  Qxc4 {[%clk 0:00:47]} 36. Qg8+ {[%clk 0:00:10]}  Kh6 {[%clk 0:00:47]} 37. Qd8 {[%clk 0:00:09]}  h4 {[%clk 0:00:37]} 38. Qd2+ {[%clk 0:00:09]}  Kh7 {[%clk 0:00:37]} 39. h3 {[%clk 0:00:10]}  Bh6 {[%clk 0:00:36]} 40. Qf2 {[%clk 0:00:09]}  Bg5 {[%clk 0:00:32]} 41. Rxe5 {[%clk 0:00:06]}  Bf6 {[%clk 0:00:28]} 42. Re1 {[%clk 0:00:05]}  Bd4 {[%clk 0:00:27]} 43. Re3 {[%clk 0:00:04]}  Qc1+ {[%clk 0:00:22]} 44. Kh2 {[%clk 0:00:02]}  Qxe3 {[%clk 0:00:22]} 45. Qxh4+ {[%clk 0:00:02]}  Qh6 {[%clk 0:00:23]} 46. Qxh6+ {[%clk 0:00:01]}  Kxh6 {[%clk 0:00:23]} 47. Kg3 {[%clk 0:00:01]}  Be5+ {[%clk 0:00:21]} 48. f4 {[%clk 0:00:02]}  Bxb8 {[%clk 0:00:22]} 0-1


[Site "https://www.chess.com"]

[Event "Titled Tuesday Blitz December 20 Early 2022"]
[White "Sanan_Sjugirov"]
[Black "Ducrest, Pierre"]
[BlackFideId "1303627"]
[WhiteElo "2933"]
[BlackElo "2004"]
[Result "1-0"]
[Round "06"]
[TimeControl "180+2"]
[Date "2022.12.20"]
[WhiteClock "0:00:06"]
[BlackClock "0:00:11"]

1. e4 {[%clk 0:03:00]}  e6 {[%clk 0:02:59]} 2. d4 {[%clk 0:03:00]}  d5 {[%clk 0:03:00]} 3. Nc3 {[%clk 0:03:01]}  Bb4 {[%clk 0:03:00]} 4. e5 {[%clk 0:03:01]}  c5 {[%clk 0:03:01]} 5. Bd2 {[%clk 0:02:58]}  Ne7 {[%clk 0:03:00]} 6. Nf3 {[%clk 0:02:58]}  O-O {[%clk 0:02:52]} 7. a3 {[%clk 0:02:50]}  Bxc3 {[%clk 0:02:47]} 8. Bxc3 {[%clk 0:02:51]}  b6 {[%clk 0:02:41]} 9. h4 {[%clk 0:02:36]}  Ba6 {[%clk 0:02:25]} 10. Bxa6 {[%clk 0:02:34]}  Nxa6 {[%clk 0:02:26]} 11. h5 {[%clk 0:02:31]}  h6 {[%clk 0:02:15]} 12. Bd2 {[%clk 0:02:21]}  Nc6 {[%clk 0:01:42]} 13. c3 {[%clk 0:02:14]}  Nc7 {[%clk 0:01:26]} 14. Qe2 {[%clk 0:02:00]}  a6 {[%clk 0:01:13]} 15. Rh4 {[%clk 0:01:56]}  f6 {[%clk 0:01:13]} 16. Rg4 {[%clk 0:01:47]}  f5 {[%clk 0:00:51]} 17. Rg6 {[%clk 0:01:46]}  Ne7 {[%clk 0:00:51]} 18. Nh4 {[%clk 0:01:38]}  Nxg6 {[%clk 0:00:40]} 19. Nxg6 {[%clk 0:01:39]}  cxd4 {[%clk 0:00:40]} 20. cxd4 {[%clk 0:01:34]}  Nb5 {[%clk 0:00:39]} 21. Qd3 {[%clk 0:01:26]}  Rc8 {[%clk 0:00:39]} 22. a4 {[%clk 0:01:22]}  Nc7 {[%clk 0:00:22]} 23. Rc1 {[%clk 0:01:22]}  Re8 {[%clk 0:00:21]} 24. Rc6 {[%clk 0:01:19]}  Qd7 {[%clk 0:00:20]} 25. Qc2 {[%clk 0:01:15]}  Kh7 {[%clk 0:00:20]} 26. Rd6 {[%clk 0:01:06]}  Qf7 {[%clk 0:00:19]} 27. Qb3 {[%clk 0:01:04]}  b5 {[%clk 0:00:17]} 28. a5 {[%clk 0:01:04]}  b4 {[%clk 0:00:17]} 29. Qxb4 {[%clk 0:00:57]}  Nb5 {[%clk 0:00:17]} 30. Rxa6 {[%clk 0:00:56]}  Rb8 {[%clk 0:00:16]} 31. Rb6 {[%clk 0:00:55]}  Rxb6 {[%clk 0:00:16]} 32. axb6 {[%clk 0:00:56]}  Qd7 {[%clk 0:00:15]} 33. Nf8+ {[%clk 0:00:29]}  Rxf8 {[%clk 0:00:14]} 34. Qxf8 {[%clk 0:00:30]}  Nxd4 {[%clk 0:00:15]} 35. Qc5 {[%clk 0:00:31]}  Nc6 {[%clk 0:00:15]} 36. Qd6 {[%clk 0:00:30]}  Qb7 {[%clk 0:00:14]} 37. Qxe6 {[%clk 0:00:26]}  Nd4 {[%clk 0:00:14]} 38. Qg6+ {[%clk 0:00:25]}  Kh8 {[%clk 0:00:15]} 39. Bxh6 {[%clk 0:00:18]}  gxh6 {[%clk 0:00:13]} 40. Qxh6+ {[%clk 0:00:19]}  Kg8 {[%clk 0:00:13]} 41. Qg6+ {[%clk 0:00:20]}  Kh8 {[%clk 0:00:14]} 42. h6 {[%clk 0:00:11]}  Qe7 {[%clk 0:00:14]} 43. Qd6 {[%clk 0:00:04]}  Qe8 {[%clk 0:00:11]} 44. b7 {[%clk 0:00:03]}  Nc2+ {[%clk 0:00:08]} 45. Kd1 {[%clk 0:00:03]}  Ne3+ {[%clk 0:00:08]} 46. fxe3 {[%clk 0:00:03]}  Qa4+ {[%clk 0:00:09]} 47. Kd2 {[%clk 0:00:03]}  Qa5+ {[%clk 0:00:09]} 48. Ke2 {[%clk 0:00:03]}  Qb5+ {[%clk 0:00:09]} 49. Kf2 {[%clk 0:00:03]}  Qxb2+ {[%clk 0:00:09]} 50. Kg3 {[%clk 0:00:04]}  Qxb7 {[%clk 0:00:10]} 51. Qf6+ {[%clk 0:00:04]}  Kh7 {[%clk 0:00:11]} 52. Qg7+ {[%clk 0:00:04]}  Qxg7+ {[%clk 0:00:10]} 53. hxg7 {[%clk 0:00:05]}  Kxg7 {[%clk 0:00:10]} 54. Kf4 {[%clk 0:00:06]}  Kg6 {[%clk 0:00:11]} 55. g3 {[%clk 0:00:06]} 1-0


[Site "https://www.chess.com"]

[Event "Titled Tuesday Blitz December 20 Early 2022"]
[White "Szpar, Milosz"]
[Black "GiorgianBarbosa"]
[WhiteFideId "1184989"]
[WhiteElo "2447"]
[BlackElo "2484"]
[Result "0-1"]
[Round "06"]
[TimeControl "180+2"]
[Date "2022.12.20"]
[WhiteClock "0:00:01"]
[BlackClock "0:00:14"]

1. e4 {[%clk 0:03:00]}  c5 {[%clk 0:03:00]} 2. Nf3 {[%clk 0:03:00]}  g6 {[%clk 0:03:00]} 3. c3 {[%clk 0:02:57]}  Bg7 {[%clk 0:03:00]} 4. d4 {[%clk 0:02:57]}  cxd4 {[%clk 0:03:00]} 5. cxd4 {[%clk 0:02:58]}  d5 {[%clk 0:02:59]} 6. e5 {[%clk 0:02:57]}  Bg4 {[%clk 0:02:58]} 7. Nbd2 {[%clk 0:02:56]}  e6 {[%clk 0:02:57]} 8. Qb3 {[%clk 0:02:46]}  Qd7 {[%clk 0:02:34]} 9. h3 {[%clk 0:02:28]}  Bxf3 {[%clk 0:02:33]} 10. Nxf3 {[%clk 0:02:27]}  Ne7 {[%clk 0:02:34]} 11. h4 {[%clk 0:02:16]}  O-O {[%clk 0:02:30]} 12. h5 {[%clk 0:02:12]}  Nbc6 {[%clk 0:02:31]} 13. Be3 {[%clk 0:02:02]}  Nf5 {[%clk 0:02:30]} 14. Bd3 {[%clk 0:01:59]}  Nxe3 {[%clk 0:02:28]} 15. fxe3 {[%clk 0:02:00]}  Rfc8 {[%clk 0:02:19]} 16. Kf2 {[%clk 0:01:54]}  Qe7 {[%clk 0:02:15]} 17. Rh3 {[%clk 0:01:34]}  Qb4 {[%clk 0:02:10]} 18. Qd1 {[%clk 0:01:19]}  Qxb2+ {[%clk 0:02:08]} 19. Kg3 {[%clk 0:01:20]}  Qa3 {[%clk 0:02:03]} 20. hxg6 {[%clk 0:01:14]}  hxg6 {[%clk 0:02:04]} 21. Ng5 {[%clk 0:01:04]}  Ne7 {[%clk 0:02:03]} 22. Kf4 {[%clk 0:00:59]}  Rc3 {[%clk 0:01:57]} 23. Qh1 {[%clk 0:00:57]}  Kf8 {[%clk 0:01:28]} 24. Rh8+ {[%clk 0:00:57]}  Bxh8 {[%clk 0:01:25]} 25. Qxh8+ {[%clk 0:00:57]}  Ng8 {[%clk 0:01:25]} 26. Rh1 {[%clk 0:00:54]}  Ke7 {[%clk 0:01:02]} 27. Rh7 {[%clk 0:00:52]}  Rf8 {[%clk 0:00:59]} 28. Rg7 {[%clk 0:00:26]}  Rxd3 {[%clk 0:00:52]} 29. Rxg8 {[%clk 0:00:26]}  Rxg8 {[%clk 0:00:47]} 30. Qxg8 {[%clk 0:00:24]}  Kd7 {[%clk 0:00:47]} 31. Qxf7+ {[%clk 0:00:23]}  Qe7 {[%clk 0:00:47]} 32. Qxg6 {[%clk 0:00:23]}  Rd2 {[%clk 0:00:44]} 33. Qf6 {[%clk 0:00:11]}  Rxg2 {[%clk 0:00:41]} 34. Nf3 {[%clk 0:00:07]}  Rxa2 {[%clk 0:00:39]} 35. Qh6 {[%clk 0:00:03]}  a5 {[%clk 0:00:35]} 36. Ng5 {[%clk 0:00:03]}  a4 {[%clk 0:00:33]} 37. Nh7 {[%clk 0:00:03]}  Rf2+ {[%clk 0:00:31]} 38. Kg3 {[%clk 0:00:03]}  Rf7 {[%clk 0:00:28]} 39. Nf6+ {[%clk 0:00:04]}  Kc7 {[%clk 0:00:29]} 40. Qh8 {[%clk 0:00:04]}  Rg7+ {[%clk 0:00:29]} 41. Kf3 {[%clk 0:00:03]}  Rf7 {[%clk 0:00:27]} 42. Ke2 {[%clk 0:00:03]}  a3 {[%clk 0:00:26]} 43. Ne8+ {[%clk 0:00:03]}  Kb6 {[%clk 0:00:25]} 44. Nd6 {[%clk 0:00:04]}  Qc7 {[%clk 0:00:21]} 45. Qa8 {[%clk 0:00:03]}  Qc2+ {[%clk 0:00:20]} 46. Ke1 {[%clk 0:00:03]}  Qc1+ {[%clk 0:00:20]} 47. Ke2 {[%clk 0:00:03]}  Qb2+ {[%clk 0:00:20]} 48. Kd3 {[%clk 0:00:03]}  Qb1+ {[%clk 0:00:20]} 49. Ke2 {[%clk 0:00:03]}  Qf1+ {[%clk 0:00:18]} 50. Kd2 {[%clk 0:00:03]}  Rf2+ {[%clk 0:00:18]} 51. Kc3 {[%clk 0:00:04]}  Qc1+ {[%clk 0:00:18]} 52. Kb4 {[%clk 0:00:05]}  Qb2+ {[%clk 0:00:15]} 53. Ka4 {[%clk 0:00:05]}  Qc2+ {[%clk 0:00:15]} 54. Kb4 {[%clk 0:00:05]}  Qb1+ {[%clk 0:00:14]} 55. Ka4 {[%clk 0:00:05]}  Qd1+ {[%clk 0:00:13]} 56. Kb4 {[%clk 0:00:02]}  Rb2+ {[%clk 0:00:14]} 57. Kc3 {[%clk 0:00:01]}  Qc2# {[%clk 0:00:14]} 0-1


[Site "https://www.chess.com"]

[Event "Titled Tuesday Blitz December 20 Early 2022"]
[White "Tarno, Brian"]
[Black "Michels, Achim"]
[WhiteFideId "10833820"]
[BlackFideId "4677889"]
[WhiteElo "2169"]
[BlackElo "2163"]
[Result "1-0"]
[Round "06"]
[TimeControl "180+2"]
[Date "2022.12.20"]
[WhiteClock "0:00:21"]
[BlackClock "0:00:03"]

1. e4 {[%clk 0:03:00]}  c6 {[%clk 0:02:57]} 2. d4 {[%clk 0:03:00]}  d5 {[%clk 0:02:57]} 3. Nc3 {[%clk 0:03:01]}  dxe4 {[%clk 0:02:57]} 4. Nxe4 {[%clk 0:03:02]}  Nf6 {[%clk 0:02:53]} 5. Nxf6+ {[%clk 0:02:59]}  exf6 {[%clk 0:02:54]} 6. Nf3 {[%clk 0:02:58]}  Bd6 {[%clk 0:02:54]} 7. Be3 {[%clk 0:02:58]}  h5 {[%clk 0:02:54]} 8. Qd2 {[%clk 0:02:57]}  h4 {[%clk 0:02:54]} 9. h3 {[%clk 0:02:55]}  Qc7 {[%clk 0:02:53]} 10. Bc4 {[%clk 0:02:45]}  Na6 {[%clk 0:02:53]} 11. O-O-O {[%clk 0:02:44]}  Bf5 {[%clk 0:02:50]} 12. d5 {[%clk 0:02:21]}  c5 {[%clk 0:01:49]} 13. Bb5+ {[%clk 0:02:16]}  Bd7 {[%clk 0:01:46]} 14. Bxd7+ {[%clk 0:02:06]}  Qxd7 {[%clk 0:01:45]} 15. Rhe1 {[%clk 0:02:05]}  O-O-O {[%clk 0:01:39]} 16. Qa5 {[%clk 0:01:40]}  Kb8 {[%clk 0:01:28]} 17. Nd2 {[%clk 0:01:30]}  Bc7 {[%clk 0:01:20]} 18. Qa3 {[%clk 0:01:22]}  Qxd5 {[%clk 0:00:52]} 19. Nb3 {[%clk 0:01:21]}  Qxg2 {[%clk 0:00:48]} 20. Nxc5 {[%clk 0:01:13]}  Nxc5 {[%clk 0:00:46]} 21. Qxc5 {[%clk 0:00:51]}  Bb6 {[%clk 0:00:38]} 22. Qe7 {[%clk 0:00:47]}  Bxe3+ {[%clk 0:00:23]} 23. fxe3 {[%clk 0:00:45]}  Rc8 {[%clk 0:00:14]} 24. c3 {[%clk 0:00:37]}  Rhf8 {[%clk 0:00:12]} 25. Rd7 {[%clk 0:00:35]}  Qc6 {[%clk 0:00:12]} 26. Red1 {[%clk 0:00:34]}  Qb6 {[%clk 0:00:08]} 27. Qe4 {[%clk 0:00:30]}  g6 {[%clk 0:00:06]} 28. Qxh4 {[%clk 0:00:28]}  f5 {[%clk 0:00:06]} 29. Qf4+ {[%clk 0:00:27]}  Ka8 {[%clk 0:00:03]} 30. Qg5 {[%clk 0:00:22]}  f6 {[%clk 0:00:03]} 31. Qh6 {[%clk 0:00:22]}  Qxe3+ {[%clk 0:00:03]} 32. Qxe3 {[%clk 0:00:21]} 1-0


[Site "https://www.chess.com"]

[Event "Titled Tuesday Blitz December 20 Early 2022"]
[White "TigrVShlyape"]
[Black "Orange_Ghost"]
[WhiteElo "2914"]
[BlackElo "2740"]
[Result "1-0"]
[Round "06"]
[TimeControl "180+2"]
[Date "2022.12.20"]
[WhiteClock "0:00:03"]
[BlackClock "0:00:07"]

1. e4 {[%clk 0:03:00]}  e5 {[%clk 0:02:58]} 2. Nf3 {[%clk 0:03:00]}  Nc6 {[%clk 0:02:57]} 3. Bb5 {[%clk 0:02:59]}  Nf6 {[%clk 0:02:57]} 4. O-O {[%clk 0:02:58]}  Nxe4 {[%clk 0:02:58]} 5. d4 {[%clk 0:02:56]}  Nd6 {[%clk 0:02:58]} 6. Bxc6 {[%clk 0:02:56]}  dxc6 {[%clk 0:02:59]} 7. dxe5 {[%clk 0:02:55]}  Nf5 {[%clk 0:02:59]} 8. Qxd8+ {[%clk 0:02:54]}  Kxd8 {[%clk 0:03:00]} 9. Rd1+ {[%clk 0:02:50]}  Ke8 {[%clk 0:02:58]} 10. Nc3 {[%clk 0:02:48]}  Be7 {[%clk 0:02:54]} 11. h3 {[%clk 0:02:39]}  Nh4 {[%clk 0:02:54]} 12. Nxh4 {[%clk 0:02:38]}  Bxh4 {[%clk 0:02:54]} 13. Bf4 {[%clk 0:02:25]}  Be7 {[%clk 0:02:36]} 14. g4 {[%clk 0:02:23]}  Be6 {[%clk 0:02:34]} 15. Kg2 {[%clk 0:02:16]}  Rd8 {[%clk 0:02:25]} 16. f3 {[%clk 0:02:12]}  Rd7 {[%clk 0:02:20]} 17. Ne4 {[%clk 0:02:02]}  h6 {[%clk 0:02:14]} 18. Ng3 {[%clk 0:01:51]}  Kd8 {[%clk 0:02:02]} 19. Nh5 {[%clk 0:01:48]}  Rg8 {[%clk 0:01:59]} 20. b3 {[%clk 0:01:42]}  Kc8 {[%clk 0:01:59]} 21. Be3 {[%clk 0:01:39]}  b6 {[%clk 0:01:58]} 22. Rxd7 {[%clk 0:01:31]}  Bxd7 {[%clk 0:01:17]} 23. Rd1 {[%clk 0:01:25]}  c5 {[%clk 0:01:03]} 24. c4 {[%clk 0:01:19]}  Bc6 {[%clk 0:01:03]} 25. Kg3 {[%clk 0:01:17]}  Kb7 {[%clk 0:00:57]} 26. Bc1 {[%clk 0:00:47]}  a6 {[%clk 0:00:30]} 27. Re1 {[%clk 0:00:33]}  Bd7 {[%clk 0:00:24]} 28. f4 {[%clk 0:00:30]}  Bc6 {[%clk 0:00:21]} 29. f5 {[%clk 0:00:29]}  Bf8 {[%clk 0:00:17]} 30. e6 {[%clk 0:00:27]}  Bd6+ {[%clk 0:00:17]} 31. Bf4 {[%clk 0:00:25]}  Bxf4+ {[%clk 0:00:18]} 32. Kxf4 {[%clk 0:00:24]}  f6 {[%clk 0:00:17]} 33. Rd1 {[%clk 0:00:21]}  Kc8 {[%clk 0:00:16]} 34. Kg3 {[%clk 0:00:18]}  Be8 {[%clk 0:00:15]} 35. Nf4 {[%clk 0:00:18]}  Bc6 {[%clk 0:00:15]} 36. Ng6 {[%clk 0:00:17]}  Re8 {[%clk 0:00:15]} 37. h4 {[%clk 0:00:16]}  Be4 {[%clk 0:00:15]} 38. Kf4 {[%clk 0:00:17]}  Bc6 {[%clk 0:00:14]} 39. g5 {[%clk 0:00:16]}  hxg5+ {[%clk 0:00:15]} 40. hxg5 {[%clk 0:00:16]}  b5 {[%clk 0:00:15]} 41. gxf6 {[%clk 0:00:16]}  gxf6 {[%clk 0:00:16]} 42. Rd2 {[%clk 0:00:16]}  a5 {[%clk 0:00:15]} 43. Kg4 {[%clk 0:00:15]}  a4 {[%clk 0:00:15]} 44. Kh5 {[%clk 0:00:14]}  bxc4 {[%clk 0:00:13]} 45. bxc4 {[%clk 0:00:14]}  Be4 {[%clk 0:00:12]} 46. Rf2 {[%clk 0:00:14]}  Bd3 {[%clk 0:00:10]} 47. Kh6 {[%clk 0:00:14]}  Bxc4 {[%clk 0:00:10]} 48. Kg7 {[%clk 0:00:08]}  Bxe6 {[%clk 0:00:10]} 49. fxe6 {[%clk 0:00:08]}  Rxe6 {[%clk 0:00:11]} 50. Nf4 {[%clk 0:00:07]}  Rd6 {[%clk 0:00:10]} 51. Rc2 {[%clk 0:00:05]}  a3 {[%clk 0:00:07]} 52. Rc3 {[%clk 0:00:05]}  Ra6 {[%clk 0:00:05]} 53. Nd3 {[%clk 0:00:04]}  Rb6 {[%clk 0:00:05]} 54. Rxa3 {[%clk 0:00:03]}  c4 {[%clk 0:00:06]} 55. Nc5 {[%clk 0:00:03]}  Kd8 {[%clk 0:00:05]} 56. Rc3 {[%clk 0:00:03]}  Rb2 {[%clk 0:00:03]} 57. a4 {[%clk 0:00:03]}  Rb4 {[%clk 0:00:03]} 58. Kxf6 {[%clk 0:00:02]}  c6 {[%clk 0:00:03]} 59. Ke5 {[%clk 0:00:02]}  Kc8 {[%clk 0:00:03]} 60. Kd4 {[%clk 0:00:02]}  Rb1 {[%clk 0:00:03]} 61. Rxc4 {[%clk 0:00:03]}  Kc7 {[%clk 0:00:04]} 62. Kc3 {[%clk 0:00:03]}  Kd6 {[%clk 0:00:04]} 63. Nb3 {[%clk 0:00:03]}  Rh1 {[%clk 0:00:05]} 64. Rd4+ {[%clk 0:00:03]}  Kc7 {[%clk 0:00:05]} 65. Kb4 {[%clk 0:00:03]}  Kb6 {[%clk 0:00:06]} 66. a5+ {[%clk 0:00:03]}  Kc7 {[%clk 0:00:07]} 67. Nc5 {[%clk 0:00:03]} 1-0


[Site "https://www.chess.com"]

[Event "Titled Tuesday Blitz December 20 Early 2022"]
[White "Timofeeva, Galina"]
[Black "Abundo, Casto"]
[WhiteFideId "14106175"]
[BlackFideId "5200512"]
[WhiteElo "1955"]
[BlackElo "2175"]
[Result "1-0"]
[Round "06"]
[TimeControl "180+2"]
[Date "2022.12.20"]
[WhiteClock "0:00:18"]
[BlackClock "0:00:01"]

1. d4 {[%clk 0:03:00]}  Nf6 {[%clk 0:03:00]} 2. Bf4 {[%clk 0:03:00]}  d5 {[%clk 0:02:59]} 3. Nc3 {[%clk 0:02:59]}  c5 {[%clk 0:02:59]} 4. e3 {[%clk 0:02:59]}  cxd4 {[%clk 0:02:57]} 5. exd4 {[%clk 0:02:59]}  a6 {[%clk 0:02:57]} 6. Nf3 {[%clk 0:02:59]}  Nc6 {[%clk 0:02:57]} 7. Ne5 {[%clk 0:02:58]}  Bd7 {[%clk 0:02:58]} 8. Qd2 {[%clk 0:02:55]}  e6 {[%clk 0:02:51]} 9. O-O-O {[%clk 0:02:46]}  Bb4 {[%clk 0:02:42]} 10. f3 {[%clk 0:02:46]}  Rc8 {[%clk 0:02:39]} 11. Qe3 {[%clk 0:02:23]}  Qa5 {[%clk 0:02:11]} 12. Rd3 {[%clk 0:02:06]}  Ne7 {[%clk 0:01:51]} 13. g4 {[%clk 0:02:00]}  Ng6 {[%clk 0:01:11]} 14. Nxg6 {[%clk 0:01:55]}  hxg6 {[%clk 0:01:10]} 15. a3 {[%clk 0:01:50]}  Bxc3 {[%clk 0:01:09]} 16. Rxc3 {[%clk 0:01:50]}  Rxc3 {[%clk 0:01:09]} 17. Qxc3 {[%clk 0:01:49]}  Qxc3 {[%clk 0:01:08]} 18. bxc3 {[%clk 0:01:50]}  Bb5 {[%clk 0:00:58]} 19. Bd3 {[%clk 0:01:49]}  O-O {[%clk 0:00:46]} 20. Kd2 {[%clk 0:01:48]}  Bxd3 {[%clk 0:00:31]} 21. cxd3 {[%clk 0:01:47]}  b5 {[%clk 0:00:31]} 22. a4 {[%clk 0:01:44]}  Ra8 {[%clk 0:00:19]} 23. Rb1 {[%clk 0:01:42]}  Kf8 {[%clk 0:00:17]} 24. axb5 {[%clk 0:01:40]}  axb5 {[%clk 0:00:17]} 25. Rxb5 {[%clk 0:01:40]}  Ra2+ {[%clk 0:00:18]} 26. Ke3 {[%clk 0:01:40]}  Rc2 {[%clk 0:00:16]} 27. Rb8+ {[%clk 0:01:20]}  Ke7 {[%clk 0:00:15]} 28. Rb7+ {[%clk 0:01:18]}  Ke8 {[%clk 0:00:13]} 29. Bd6 {[%clk 0:01:11]}  Nd7 {[%clk 0:00:08]} 30. Ra7 {[%clk 0:01:08]}  f6 {[%clk 0:00:07]} 31. Rc7 {[%clk 0:00:59]}  e5 {[%clk 0:00:05]} 32. dxe5 {[%clk 0:00:56]}  fxe5 {[%clk 0:00:06]} 33. d4 {[%clk 0:00:56]}  exd4+ {[%clk 0:00:02]} 34. Kxd4 {[%clk 0:00:55]}  Rd2+ {[%clk 0:00:03]} 35. Ke3 {[%clk 0:00:55]}  Rc2 {[%clk 0:00:03]} 36. Bg3 {[%clk 0:00:50]}  g5 {[%clk 0:00:03]} 37. Kd3 {[%clk 0:00:48]}  Rc1 {[%clk 0:00:03]} 38. Rc6 {[%clk 0:00:45]}  Ke7 {[%clk 0:00:03]} 39. Rg6 {[%clk 0:00:43]}  Kf7 {[%clk 0:00:03]} 40. Rd6 {[%clk 0:00:43]}  Nc5+ {[%clk 0:00:03]} 41. Kd4 {[%clk 0:00:41]}  Ne6+ {[%clk 0:00:03]} 42. Ke5 {[%clk 0:00:36]}  Rxc3 {[%clk 0:00:02]} 43. Rd7+ {[%clk 0:00:35]}  Kg6 {[%clk 0:00:02]} 44. Kxe6 {[%clk 0:00:34]}  Rxf3 {[%clk 0:00:02]} 45. Rxd5 {[%clk 0:00:33]}  Re3+ {[%clk 0:00:02]} 46. Re5 {[%clk 0:00:33]}  Rd3 {[%clk 0:00:03]} 47. Ke7 {[%clk 0:00:32]}  Rd4 {[%clk 0:00:03]} 48. Re6+ {[%clk 0:00:23]}  Kh7 {[%clk 0:00:03]} 49. Kf8 {[%clk 0:00:24]}  Rxg4 {[%clk 0:00:03]} 50. Re7 {[%clk 0:00:24]}  Rd4 {[%clk 0:00:03]} 51. Rxg7+ {[%clk 0:00:24]}  Kh6 {[%clk 0:00:03]} 52. Ra7 {[%clk 0:00:24]}  Rc4 {[%clk 0:00:03]} 53. Kf7 {[%clk 0:00:24]}  Rc6 {[%clk 0:00:04]} 54. Re7 {[%clk 0:00:23]}  Kh5 {[%clk 0:00:04]} 55. Re6 {[%clk 0:00:23]}  Rc4 {[%clk 0:00:03]} 56. Kf6 {[%clk 0:00:23]}  Ra4 {[%clk 0:00:03]} 57. Re5 {[%clk 0:00:23]}  Ra6+ {[%clk 0:00:03]} 58. Kf5 {[%clk 0:00:23]}  Ra1 {[%clk 0:00:03]} 59. Ke4 {[%clk 0:00:22]}  Rf1 {[%clk 0:00:02]} 60. Rf5 {[%clk 0:00:21]}  Ra1 {[%clk 0:00:01]} 61. Kf3 {[%clk 0:00:19]}  Ra3+ {[%clk 0:00:01]} 62. Kg2 {[%clk 0:00:18]}  Kg6 {[%clk 0:00:01]} 63. Rb5 {[%clk 0:00:18]} 1-0


[Site "https://www.chess.com"]

[Event "Titled Tuesday Blitz December 20 Early 2022"]
[White "WhiteKnight2612"]
[Black "Brunstein, Sandrine"]
[BlackFideId "625574"]
[WhiteElo "2753"]
[BlackElo "1990"]
[Result "0-1"]
[Round "06"]
[TimeControl "180+2"]
[Date "2022.12.20"]
[WhiteClock "0:00:05"]
[BlackClock "0:00:11"]

1. Nf3 {[%clk 0:03:00]}  Nf6 {[%clk 0:02:59]} 2. g3 {[%clk 0:02:50]}  g6 {[%clk 0:02:57]} 3. Bg2 {[%clk 0:02:51]}  Bg7 {[%clk 0:02:58]} 4. O-O {[%clk 0:02:52]}  O-O {[%clk 0:02:59]} 5. d4 {[%clk 0:02:52]}  d6 {[%clk 0:02:59]} 6. c4 {[%clk 0:02:44]}  c5 {[%clk 0:02:59]} 7. d5 {[%clk 0:02:39]}  b5 {[%clk 0:02:57]} 8. cxb5 {[%clk 0:02:32]}  a6 {[%clk 0:02:58]} 9. b6 {[%clk 0:02:28]}  a5 {[%clk 0:02:55]} 10. Nc3 {[%clk 0:02:27]}  Qxb6 {[%clk 0:02:52]} 11. e4 {[%clk 0:02:14]}  Ba6 {[%clk 0:02:44]} 12. Re1 {[%clk 0:02:11]}  Ng4 {[%clk 0:02:43]} 13. h3 {[%clk 0:02:10]}  Ne5 {[%clk 0:02:43]} 14. Nxe5 {[%clk 0:02:05]}  Bxe5 {[%clk 0:02:44]} 15. f4 {[%clk 0:02:04]}  Bd4+ {[%clk 0:02:44]} 16. Kh2 {[%clk 0:02:05]}  Nd7 {[%clk 0:02:45]} 17. Ne2 {[%clk 0:01:48]}  Bg7 {[%clk 0:02:36]} 18. Ng1 {[%clk 0:01:44]}  c4 {[%clk 0:02:29]} 19. Nf3 {[%clk 0:01:39]}  Nc5 {[%clk 0:02:29]} 20. e5 {[%clk 0:01:34]}  Nd3 {[%clk 0:02:29]} 21. Re2 {[%clk 0:01:32]}  Rac8 {[%clk 0:02:08]} 22. Be3 {[%clk 0:01:30]}  Qb7 {[%clk 0:01:56]} 23. Nd4 {[%clk 0:01:22]}  Nxb2 {[%clk 0:01:52]} 24. Qc2 {[%clk 0:01:06]}  c3 {[%clk 0:01:53]} 25. Nc6 {[%clk 0:01:06]}  Bxe2 {[%clk 0:01:18]} 26. Qxe2 {[%clk 0:01:07]}  dxe5 {[%clk 0:01:11]} 27. fxe5 {[%clk 0:01:07]}  e6 {[%clk 0:01:11]} 28. Bg5 {[%clk 0:00:31]}  exd5 {[%clk 0:01:06]} 29. Ne7+ {[%clk 0:00:30]}  Kh8 {[%clk 0:01:07]} 30. Nxc8 {[%clk 0:00:31]}  Rxc8 {[%clk 0:00:56]} 31. e6 {[%clk 0:00:32]}  fxe6 {[%clk 0:00:51]} 32. Qxe6 {[%clk 0:00:31]}  Qc6 {[%clk 0:00:48]} 33. Qe7 {[%clk 0:00:28]}  Re8 {[%clk 0:00:42]} 34. Qa7 {[%clk 0:00:26]}  h6 {[%clk 0:00:38]} 35. Bf4 {[%clk 0:00:23]}  c2 {[%clk 0:00:32]} 36. Rf1 {[%clk 0:00:18]}  Nd3 {[%clk 0:00:31]} 37. Bxh6 {[%clk 0:00:19]}  Bxh6 {[%clk 0:00:26]} 38. Rf7 {[%clk 0:00:20]}  Ne5 {[%clk 0:00:18]} 39. Rh7+ {[%clk 0:00:12]}  Kg8 {[%clk 0:00:18]} 40. Rxh6 {[%clk 0:00:12]}  Nf7 {[%clk 0:00:12]} 41. Bxd5 {[%clk 0:00:06]}  Re2+ {[%clk 0:00:11]} 42. Kh1 {[%clk 0:00:05]}  c1=Q+ {[%clk 0:00:11]} 0-1


[Site "https://www.chess.com"]